[Event "Snabb-SM för veteraner, 50+ 2019"]
[Site "Schackcentrum, Vegagatan 20, Gothenburg, Sweden"]
[Date "2019.10.06"]
[Round "8.3"]
[White "Holst, Conny"]
[Black "Svensson, Sven"]
[Result "1-0"]
[TimeControl "15 minutes + 10 seconds per move from move one"]
[WhiteFideId "1701428"]
[BlackFideId "1709240"]
[WhiteElo "2166"]
[BlackElo "2158"]

1. d4 {[%clk 00:14:17]} {[%emt 00:01:02]} Nf6 {[%clk 00:15:18]} {[%emt
00:00:02]} 2. c4 {[%clk 00:14:25]} {[%emt 00:00:03]} e6 {[%clk 00:15:26]}
{[%emt 00:00:02]} 3. Nc3 {[%clk 00:14:32]} {[%emt 00:00:02]} Bb4 {[%clk
00:15:35]} {[%emt 00:00:02]} 4. e3 {[%clk 00:14:40]} {[%emt 00:00:02]} c5
{[%clk 00:15:40]} {[%emt 00:00:04]} 5. Bd3 {[%clk 00:14:41]} {[%emt 00:00:09]}
O-O {[%clk 00:15:46]} {[%emt 00:00:05]} 6. Nge2 {[%clk 00:14:37]} {[%emt
00:00:14]} d5 {[%clk 00:15:49]} {[%emt 00:00:07]} 7. cxd5 {[%clk 00:14:42]}
{[%emt 00:00:05]} cxd4 {[%clk 00:15:38]} {[%emt 00:00:20]} 8. exd4 {[%clk
00:14:49]} {[%emt 00:00:03]} Nxd5 {[%clk 00:15:37]} {[%emt 00:00:13]} 9. O-O
{[%clk 00:14:51]} {[%emt 00:00:07]} Nxc3 {[%clk 00:13:37]} {[%emt 00:02:10]} 10.
bxc3 {[%clk 00:14:51]} {[%emt 00:00:09]} Bd6 {[%clk 00:13:45]} {[%emt
00:00:02]} 11. f4 {[%clk 00:12:55]} {[%emt 00:02:07]} Nc6 {[%clk 00:13:33]}
{[%emt 00:00:23]} 12. Ng3 {[%clk 00:12:25]} {[%emt 00:00:39]} Qh4 {[%clk
00:12:28]} {[%emt 00:01:15]} 13. Ne4 {[%clk 00:12:01]} {[%emt 00:00:34]} Qe7
{[%clk 00:11:28]} {[%emt 00:01:10]} 14. Rb1 {[%clk 00:11:44]} {[%emt 00:00:27]}
b6 {[%clk 00:10:59]} {[%emt 00:00:39]} 15. Rf3 {[%clk 00:08:56]} {[%emt
00:02:57]} f5 {[%clk 00:10:17]} {[%emt 00:00:53]} 16. Nxd6 {[%clk 00:08:48]}
{[%emt 00:00:18]} Qxd6 {[%clk 00:10:25]} {[%emt 00:00:02]} 17. Qe2 {[%clk
00:08:29]} {[%emt 00:00:29]} Bb7 {[%clk 00:10:04]} {[%emt 00:00:31]} 18. Ba6
{[%clk 00:08:15]} {[%emt 00:00:24]} Nxd4 {[%clk 00:07:30]} {[%emt 00:02:45]} 19.
cxd4 {[%clk 00:08:22]} {[%emt 00:00:03]} Bxf3 {[%clk 00:07:38]} {[%emt
00:00:01]} 20. Qxf3 {[%clk 00:08:28]} {[%emt 00:00:03]} Qxd4+ {[%clk 00:07:48]}
{[%emt 00:00:01]} 21. Be3 {[%clk 00:08:29]} {[%emt 00:00:09]} Qa4 {[%clk
00:07:57]} {[%emt 00:00:01]} 22. Qe2 {[%clk 00:07:49]} {[%emt 00:00:51]} Rfd8
{[%clk 00:06:54]} {[%emt 00:01:12]} 23. Bc4 {[%clk 00:07:06]} {[%emt 00:00:52]}
Kh8 {[%clk 00:06:45]} {[%emt 00:00:20]} 24. h3 {[%clk 00:06:56]} {[%emt
00:00:20]} Rac8 {[%clk 00:06:41]} {[%emt 00:00:14]} 25. Bb3 {[%clk 00:05:51]}
{[%emt 00:01:14]} Qe4 {[%clk 00:06:39]} {[%emt 00:00:10]} 26. Re1 {[%clk
00:05:48]} {[%emt 00:00:16]} h6 {[%clk 00:04:06]} {[%emt 00:02:43]} 27. Bf2
{[%clk 00:05:42]} {[%emt 00:00:16]} Qxf4 {[%clk 00:03:54]} {[%emt 00:00:22]} 28.
Qxe6 {[%clk 00:05:38]} {[%emt 00:00:14]} Rc1 {[%clk 00:03:19]} {[%emt
00:00:45]} 29. Rxc1 {[%clk 00:05:30]} {[%emt 00:00:18]} Qxc1+ {[%clk 00:03:28]}
{[%emt 00:00:02]} 30. Kh2 {[%clk 00:05:31]} {[%emt 00:00:08]} Qc7+ {[%clk
00:03:36]} {[%emt 00:00:02]} 31. Kh1 {[%clk 00:04:21]} {[%emt 00:01:20]} Qc1+
{[%clk 00:03:22]} {[%emt 00:00:23]} 32. Qe1 {[%clk 00:04:00]} {[%emt 00:00:31]}
Qc6 {[%clk 00:03:13]} {[%emt 00:00:20]} 33. Qe5 {[%clk 00:03:53]} {[%emt
00:00:16]} Qc1+ {[%clk 00:02:26]} {[%emt 00:00:57]} 34. Kh2 {[%clk 00:04:00]}
{[%emt 00:00:03]} Qg5 {[%clk 00:02:33]} {[%emt 00:00:02]} 35. Be3 {[%clk
00:03:30]} {[%emt 00:00:40]} Qg6 {[%clk 00:02:28]} {[%emt 00:00:15]} 36. Bf4
{[%clk 00:03:13]} {[%emt 00:00:28]} Re8 {[%clk 00:02:12]} {[%emt 00:00:27]} 37.
Qc7 {[%clk 00:03:10]} {[%emt 00:00:12]} Re2 {[%clk 00:00:33]} {[%emt 00:01:50]}
38. Bd5 {[%clk 00:03:07]} {[%emt 00:00:12]} a5 {[%clk 00:00:20]} {[%emt
00:00:23]} 39. Be5 {[%clk 00:02:48]} {[%emt 00:00:28]} 1-0

[Event "Snabb-SM för veteraner, 50+ 2019"]
[Site "Schackcentrum, Vegagatan 20, Gothenburg, Sweden"]
[Date "2019.10.06"]
[Round "8.4"]
[White "Borvander, Tom"]
[Black "Eriksson, Kristian"]
[Result "1/2-1/2"]
[TimeControl "15 minutes + 10 seconds per move from move one"]
[WhiteFideId "1707388"]
[BlackFideId "1705172"]
[WhiteElo "2066"]
[BlackElo "2025"]

1. d4 {[%clk 00:15:17]} {[%emt 00:00:02]} Nf6 {[%clk 00:15:17]} {[%emt
00:00:03]} 2. c4 {[%clk 00:15:25]} {[%emt 00:00:02]} e6 {[%clk 00:15:24]}
{[%emt 00:00:02]} 3. g3 {[%clk 00:15:33]} {[%emt 00:00:03]} Bb4+ {[%clk
00:15:24]} {[%emt 00:00:10]} 4. Bd2 {[%clk 00:15:41]} {[%emt 00:00:02]} Qe7
{[%clk 00:15:26]} {[%emt 00:00:08]} 5. Nf3 {[%clk 00:15:45]} {[%emt 00:00:06]}
O-O {[%clk 00:15:14]} {[%emt 00:00:21]} 6. Nc3 {[%clk 00:15:53]} {[%emt
00:00:03]} d5 {[%clk 00:14:49]} {[%emt 00:00:35]} 7. Bg2 {[%clk 00:14:35]}
{[%emt 00:01:28]} Nc6 {[%clk 00:14:03]} {[%emt 00:00:56]} 8. cxd5 {[%clk
00:14:08]} {[%emt 00:00:37]} exd5 {[%clk 00:14:05]} {[%emt 00:00:08]} 9. O-O
{[%clk 00:14:06]} {[%emt 00:00:12]} Bg4 {[%clk 00:13:27]} {[%emt 00:00:48]} 10.
Bg5 {[%clk 00:13:25]} {[%emt 00:00:52]} Bxc3 {[%clk 00:12:51]} {[%emt
00:00:46]} 11. bxc3 {[%clk 00:13:31]} {[%emt 00:00:04]} Rfd8 {[%clk 00:12:36]}
{[%emt 00:00:25]} 12. Re1 {[%clk 00:12:18]} {[%emt 00:01:24]} h6 {[%clk
00:11:56]} {[%emt 00:00:49]} 13. Bf4 {[%clk 00:07:55]} {[%emt 00:04:33]} Bf5
{[%clk 00:11:48]} {[%emt 00:00:18]} 14. Ne5 {[%clk 00:07:26]} {[%emt 00:00:39]}
Nxe5 {[%clk 00:11:25]} {[%emt 00:00:33]} 15. Bxe5 {[%clk 00:07:30]} {[%emt
00:00:07]} c6 {[%clk 00:10:24]} {[%emt 00:01:11]} 16. Qb3 {[%clk 00:06:27]}
{[%emt 00:01:13]} Ne4 {[%clk 00:08:28]} {[%emt 00:02:05]} 17. Bf4 {[%clk
00:06:02]} {[%emt 00:00:35]} Nd6 {[%clk 00:07:38]} {[%emt 00:01:00]} 18. f3
{[%clk 00:04:57]} {[%emt 00:01:15]} Nc4 {[%clk 00:06:14]} {[%emt 00:01:34]} 19.
e4 {[%clk 00:04:32]} {[%emt 00:00:34]} Be6 {[%clk 00:06:21]} {[%emt 00:00:04]}
20. Rab1 {[%clk 00:03:54]} {[%emt 00:00:49]} Rd7 {[%clk 00:05:08]} {[%emt
00:01:23]} 21. Bf1 {[%clk 00:03:11]} {[%emt 00:00:53]} Nb6 {[%clk 00:04:28]}
{[%emt 00:00:50]} 22. Qc2 {[%clk 00:02:57]} {[%emt 00:00:24]} g5 {[%clk
00:04:04]} {[%emt 00:00:34]} 23. Bc1 {[%clk 00:02:51]} {[%emt 00:00:16]} Qf6
{[%clk 00:04:05]} {[%emt 00:00:10]} 24. Be2 {[%clk 00:01:45]} {[%emt 00:01:15]}
Qg6 {[%clk 00:03:36]} {[%emt 00:00:39]} 25. Bd3 {[%clk 00:01:45]} {[%emt
00:00:10]} Qf6 {[%clk 00:03:03]} {[%emt 00:00:43]} 26. Kg2 {[%clk 00:01:51]}
{[%emt 00:00:04]} dxe4 {[%clk 00:02:34]} {[%emt 00:00:40]} 27. fxe4 {[%clk
00:01:55]} {[%emt 00:00:06]} Bc4 {[%clk 00:02:35]} {[%emt 00:00:09]} 28. Rf1
{[%clk 00:01:51]} {[%emt 00:00:14]} Qe6 {[%clk 00:02:30]} {[%emt 00:00:15]} 29.
Qe2 {[%clk 00:01:36]} {[%emt 00:00:24]} Bxd3 {[%clk 00:02:07]} {[%emt
00:00:34]} 30. Qxd3 {[%clk 00:01:43]} {[%emt 00:00:02]} Qxa2+ {[%clk 00:02:14]}
{[%emt 00:00:04]} 31. Rf2 {[%clk 00:01:51]} {[%emt 00:00:02]} Qc4 {[%clk
00:02:14]} {[%emt 00:00:10]} 32. Qf3 {[%clk 00:01:59]} {[%emt 00:00:02]} Re8
{[%clk 00:02:08]} {[%emt 00:00:16]} 33. h4 {[%clk 00:02:07]} {[%emt 00:00:02]}
Qe6 {[%clk 00:01:41]} {[%emt 00:00:38]} 34. hxg5 {[%clk 00:01:28]} {[%emt
00:00:49]} hxg5 {[%clk 00:01:47]} {[%emt 00:00:04]} 35. e5 {[%clk 00:01:20]}
{[%emt 00:00:19]} g4 {[%clk 00:01:35]} {[%emt 00:00:21]} 36. Qd3 {[%clk
00:01:05]} {[%emt 00:00:24]} Qxe5 {[%clk 00:01:25]} {[%emt 00:00:20]} 37. Bf4
{[%clk 00:00:43]} {[%emt 00:00:32]} Qe4+ {[%clk 00:01:23]} {[%emt 00:00:12]} 38.
Qxe4 {[%clk 00:00:52]} {[%emt 00:00:01]} Rxe4 {[%clk 00:01:32]} {[%emt
00:00:01]} 39. Ra1 {[%clk 00:00:58]} {[%emt 00:00:04]} a6 {[%clk 00:01:26]}
{[%emt 00:00:16]} 40. Rb2 {[%clk 00:01:03]} {[%emt 00:00:04]} Nd5 {[%clk
00:01:32]} {[%emt 00:00:05]} 41. Rab1 {[%clk 00:00:52]} {[%emt 00:00:21]} Nxc3
{[%clk 00:00:56]} {[%emt 00:00:46]} 42. Rxb7 {[%clk 00:01:01]} {[%emt
00:00:01]} Rdxd4 {[%clk 00:00:57]} {[%emt 00:00:09]} 43. Rb8+ {[%clk 00:01:02]}
{[%emt 00:00:09]} Kg7 {[%clk 00:00:59]} {[%emt 00:00:08]} 44. Rf1 {[%clk
00:00:31]} {[%emt 00:00:40]} Re2+ {[%clk 00:00:50]} {[%emt 00:00:18]} 45. Kg1
{[%clk 00:00:39]} {[%emt 00:00:02]} Re7 {[%clk 00:00:28]} {[%emt 00:00:33]} 46.
Bg5 {[%clk 00:00:46]} {[%emt 00:00:03]} Red7 {[%clk 00:00:29]} {[%emt
00:00:09]} 47. Bf6+ {[%clk 00:00:54]} {[%emt 00:00:02]} Kg6 {[%clk 00:00:34]}
{[%emt 00:00:05]} 48. Bxd4 {[%clk 00:01:02]} {[%emt 00:00:02]} Rxd4 {[%clk
00:00:37]} {[%emt 00:00:08]} 49. Rg8+ {[%clk 00:00:58]} {[%emt 00:00:14]} Kh7
{[%clk 00:00:34]} {[%emt 00:00:12]} 50. Rc8 {[%clk 00:01:06]} {[%emt 00:00:02]}
Ne2+ {[%clk 00:00:19]} {[%emt 00:00:26]} 51. Kf2 {[%clk 00:01:12]} {[%emt
00:00:02]} Rd2 {[%clk 00:00:23]} {[%emt 00:00:07]} 52. Ke3 {[%clk 00:01:10]}
{[%emt 00:00:11]} Ra2 {[%clk 00:00:22]} {[%emt 00:00:12]} 53. Rxf7+ {[%clk
00:01:15]} {[%emt 00:00:05]} Kg6 {[%clk 00:00:31]} 54. Rfc7 {[%clk 00:01:18]}
{[%emt 00:00:06]} Nxg3 {[%clk 00:00:32]} {[%emt 00:00:10]} 55. Rxc6+ {[%clk
00:01:25]} {[%emt 00:00:04]} Kg5 {[%clk 00:00:33]} {[%emt 00:00:08]} 56. Rg8+
{[%clk 00:01:24]} {[%emt 00:00:11]} Kf5 {[%clk 00:00:23]} {[%emt 00:00:20]} 57.
Rc5+ {[%clk 00:01:30]} {[%emt 00:00:03]} Ke6 {[%clk 00:00:31]} {[%emt
00:00:03]} 58. Rxg4 {[%clk 00:01:25]} {[%emt 00:00:15]} Nf5+ {[%clk 00:00:39]}
{[%emt 00:00:02]} 59. Kd3 {[%clk 00:01:28]} {[%emt 00:00:05]} Ra3+ {[%clk
00:00:35]} {[%emt 00:00:17]} 60. Ke2 {[%clk 00:01:34]} {[%emt 00:00:02]} Ra2+
{[%clk 00:00:33]} {[%emt 00:00:14]} 61. Ke1 {[%clk 00:01:38]} {[%emt 00:00:04]}
Ra1+ {[%clk 00:00:28]} {[%emt 00:00:17]} 62. Kd2 {[%clk 00:01:41]} {[%emt
00:00:03]} Ra2+ {[%clk 00:00:34]} {[%emt 00:00:07]} 63. Kc1 {[%clk 00:01:47]}
{[%emt 00:00:02]} Rf2 {[%clk 00:00:30]} {[%emt 00:00:15]} 64. Rg6+ {[%clk
00:01:53]} {[%emt 00:00:04]} Kf7 {[%clk 00:00:37]} {[%emt 00:00:05]} 65. Rxa6
{[%clk 00:02:00]} {[%emt 00:00:03]} Ne7 {[%clk 00:00:15]} {[%emt 00:00:31]} 66.
Rh5 {[%clk 00:01:58]} {[%emt 00:00:12]} Re2 {[%clk 00:00:19]} {[%emt 00:00:06]}
67. Kd1 {[%clk 00:02:00]} {[%emt 00:00:09]} Re4 {[%clk 00:00:17]} {[%emt
00:00:11]} 68. Rh7+ {[%emt 00:00:29]} 1/2-1/2

[Event "Snabb-SM för veteraner, 50+ 2019"]
[Site "Schackcentrum, Vegagatan 20, Gothenburg, Sweden"]
[Date "2019.10.06"]
[Round "8.5"]
[White "Svenn, Matti"]
[Black "Wesslen, Ulf"]
[Result "1-0"]
[TimeControl "15 minutes + 10 seconds per move from move one"]
[WhiteFideId "1705091"]
[BlackFideId "1705199"]
[WhiteElo "2195"]
[BlackElo "1971"]

1. e4 {[%clk 00:15:18]} {[%emt 00:00:02]} c5 {[%clk 00:15:17]} {[%emt
00:00:03]} 2. Nf3 {[%clk 00:15:25]} {[%emt 00:00:02]} e6 {[%clk 00:15:25]}
{[%emt 00:00:02]} 3. d3 {[%clk 00:15:34]} {[%emt 00:00:02]} Nc6 {[%clk
00:15:08]} {[%emt 00:00:26]} 4. g3 {[%clk 00:15:41]} {[%emt 00:00:03]} Nf6
{[%clk 00:14:47]} {[%emt 00:00:31]} 5. Bg2 {[%clk 00:15:49]} {[%emt 00:00:02]}
d5 {[%clk 00:14:41]} {[%emt 00:00:16]} 6. Nbd2 {[%clk 00:15:56]} {[%emt
00:00:02]} Be7 {[%clk 00:13:56]} {[%emt 00:00:56]} 7. O-O {[%clk 00:16:03]}
{[%emt 00:00:03]} O-O {[%clk 00:13:53]} {[%emt 00:00:12]} 8. Re1 {[%clk
00:16:04]} {[%emt 00:00:09]} b5 {[%clk 00:12:46]} {[%emt 00:01:18]} 9. e5
{[%clk 00:15:53]} {[%emt 00:00:20]} Nd7 {[%clk 00:12:10]} {[%emt 00:00:47]} 10.
Nf1 {[%clk 00:16:01]} {[%emt 00:00:02]} Bb7 {[%clk 00:11:41]} {[%emt 00:00:39]}
11. h4 {[%clk 00:16:02]} {[%emt 00:00:08]} Qc7 {[%clk 00:11:00]} {[%emt
00:00:51]} 12. Bf4 {[%clk 00:16:10]} {[%emt 00:00:03]} Nb6 {[%clk 00:10:04]}
{[%emt 00:01:06]} 13. N1h2 {[%clk 00:16:05]} {[%emt 00:00:14]} d4 {[%clk
00:09:23]} {[%emt 00:00:52]} 14. Ng5 {[%clk 00:11:07]} {[%emt 00:05:08]} Nb4
{[%clk 00:07:31]} {[%emt 00:02:03]} 15. Qh5 {[%clk 00:09:13]} {[%emt 00:02:04]}
Bxg5 {[%clk 00:05:52]} {[%emt 00:01:49]} 16. hxg5 {[%clk 00:09:19]} {[%emt
00:00:03]} Nxc2 {[%clk 00:05:09]} {[%emt 00:00:54]} 17. Ng4 {[%clk 00:09:25]}
{[%emt 00:00:03]} Rfe8 {[%clk 00:01:54]} {[%emt 00:03:25]} 18. Nf6+ {[%clk
00:07:57]} {[%emt 00:01:39]} Kf8 {[%clk 00:01:47]} {[%emt 00:00:18]} 19. Qxh7
{[%clk 00:04:45]} {[%emt 00:03:21]} Nxe1 {[%clk 00:01:34]} {[%emt 00:00:24]} 20.
Rxe1 {[%clk 00:04:45]} {[%emt 00:00:10]} Ke7 {[%clk 00:01:09]} {[%emt
00:00:35]} 21. Nxe8 {[%clk 00:03:59]} {[%emt 00:00:56]} Rxe8 {[%clk 00:01:16]}
{[%emt 00:00:02]} 22. Qxg7 {[%clk 00:04:07]} {[%emt 00:00:01]} Bxg2 {[%clk
00:01:17]} {[%emt 00:00:10]} 23. Kxg2 {[%clk 00:04:10]} {[%emt 00:00:07]} Nd5
{[%clk 00:01:21]} {[%emt 00:00:07]} 24. g6 {[%clk 00:04:17]} {[%emt 00:00:03]}
Rf8 {[%clk 00:01:30]} 25. Bg5+ {[%clk 00:04:23]} {[%emt 00:00:03]} Ke8 {[%clk
00:01:36]} {[%emt 00:00:05]} 26. Bh6 {[%clk 00:04:30]} {[%emt 00:00:02]} Qe7
{[%clk 00:00:58]} {[%emt 00:00:48]} 27. Qxf8+ {[%clk 00:04:21]} {[%emt
00:00:19]} Qxf8 {[%clk 00:01:07]} {[%emt 00:00:02]} 28. Bxf8 {[%clk 00:04:29]}
{[%emt 00:00:02]} Kxf8 {[%clk 00:01:14]} {[%emt 00:00:02]} 29. Rc1 {[%clk
00:04:31]} {[%emt 00:00:08]} 1-0

[Event "Snabb-SM för veteraner, 50+ 2019"]
[Site "Schackcentrum, Vegagatan 20, Gothenburg, Sweden"]
[Date "2019.10.06"]
[Round "8.6"]
[White "Gamback, Bjorn"]
[Black "Sigeman, Johan"]
[Result "1/2-1/2"]
[TimeControl "15 minutes + 10 seconds per move from move one"]
[WhiteTitle "CM"]
[WhiteFideId "1703161"]
[BlackFideId "1705601"]
[WhiteElo "2120"]
[BlackElo "2100"]

1. e4 {[%clk 00:15:18]} {[%emt 00:00:02]} e5 {[%clk 00:15:17]} {[%emt
00:00:03]} 2. Nf3 {[%clk 00:15:26]} {[%emt 00:00:02]} Nc6 {[%clk 00:15:26]} 3.
Bc4 {[%clk 00:15:35]} {[%emt 00:00:01]} Nf6 {[%clk 00:15:34]} {[%emt 00:00:02]}
4. d4 {[%clk 00:15:42]} {[%emt 00:00:02]} exd4 {[%clk 00:15:34]} {[%emt
00:00:11]} 5. e5 {[%clk 00:15:51]} {[%emt 00:00:01]} d5 {[%clk 00:15:17]}
{[%emt 00:00:27]} 6. Bb5 {[%clk 00:15:59]} {[%emt 00:00:01]} Nd7 {[%clk
00:14:53]} {[%emt 00:00:35]} 7. O-O {[%clk 00:15:35]} {[%emt 00:00:34]} Be7
{[%clk 00:14:50]} {[%emt 00:00:12]} 8. Bxc6 {[%clk 00:15:22]} {[%emt 00:00:24]}
bxc6 {[%clk 00:14:57]} {[%emt 00:00:03]} 9. Nxd4 {[%clk 00:15:31]} Nb8 {[%clk
00:15:02]} {[%emt 00:00:04]} 10. Re1 {[%clk 00:13:11]} {[%emt 00:02:30]} c5
{[%clk 00:14:20]} {[%emt 00:00:52]} 11. Nb5 {[%clk 00:13:15]} {[%emt 00:00:07]}
O-O {[%clk 00:13:56]} {[%emt 00:00:34]} 12. Bf4 {[%clk 00:12:46]} {[%emt
00:00:39]} a6 {[%clk 00:13:28]} {[%emt 00:00:37]} 13. N5c3 {[%clk 00:12:51]}
{[%emt 00:00:05]} Bb7 {[%clk 00:13:28]} {[%emt 00:00:10]} 14. Nd2 {[%clk
00:12:45]} {[%emt 00:00:16]} Nd7 {[%clk 00:11:20]} {[%emt 00:02:18]} 15. Qg4
{[%clk 00:12:53]} {[%emt 00:00:02]} Kh8 {[%clk 00:11:04]} {[%emt 00:00:27]} 16.
Rad1 {[%clk 00:12:47]} {[%emt 00:00:16]} Nb6 {[%clk 00:10:47]} {[%emt
00:00:27]} 17. Qg3 {[%clk 00:11:30]} {[%emt 00:01:27]} g5 {[%clk 00:10:33]}
{[%emt 00:00:24]} 18. Be3 {[%clk 00:10:53]} {[%emt 00:00:47]} d4 {[%clk
00:07:48]} {[%emt 00:02:55]} 19. Nb3 {[%clk 00:10:16]} {[%emt 00:00:47]} Qc8
{[%clk 00:07:00]} {[%emt 00:00:58]} 20. Nxd4 {[%clk 00:10:11]} {[%emt
00:00:15]} cxd4 {[%clk 00:06:59]} {[%emt 00:00:11]} 21. Bxd4 {[%clk 00:10:21]}
{[%emt 00:00:01]} Qe6 {[%clk 00:06:43]} {[%emt 00:00:25]} 22. Ne4 {[%clk
00:10:10]} {[%emt 00:00:21]} Bxe4 {[%clk 00:06:32]} {[%emt 00:00:21]} 23. Rxe4
{[%clk 00:10:19]} Rad8 {[%clk 00:06:19]} {[%emt 00:00:23]} 24. Rde1 {[%clk
00:10:12]} {[%emt 00:00:17]} c5 {[%clk 00:06:13]} {[%emt 00:00:16]} 25. Bc3
{[%clk 00:10:08]} {[%emt 00:00:15]} Nd5 {[%clk 00:06:12]} {[%emt 00:00:10]} 26.
Bd2 {[%clk 00:10:06]} {[%emt 00:00:12]} Rg8 {[%clk 00:05:42]} {[%emt 00:00:41]}
27. a3 {[%clk 00:10:00]} {[%emt 00:00:15]} Nc7 {[%clk 00:04:35]} {[%emt
00:01:18]} 28. Ba5 {[%clk 00:10:03]} {[%emt 00:00:07]} Rd7 {[%clk 00:04:40]}
{[%emt 00:00:05]} 29. c4 {[%clk 00:09:13]} {[%emt 00:01:00]} Ne8 {[%clk
00:04:36]} {[%emt 00:00:14]} 30. Bc3 {[%clk 00:09:18]} {[%emt 00:00:05]} Ng7
{[%clk 00:04:33]} {[%emt 00:00:13]} 31. Qe3 {[%clk 00:07:41]} {[%emt 00:01:47]}
Nf5 {[%clk 00:04:16]} {[%emt 00:00:27]} 32. Qc1 {[%clk 00:07:30]} {[%emt
00:00:21]} Rgd8 {[%clk 00:04:07]} {[%emt 00:00:20]} 33. Ba5 {[%clk 00:07:35]}
{[%emt 00:00:06]} Rg8 {[%clk 00:04:03]} {[%emt 00:00:13]} 34. Bc3 {[%clk
00:07:38]} {[%emt 00:00:06]} Rgd8 {[%clk 00:04:02]} {[%emt 00:00:12]} 35. Ba5
{[%clk 00:07:47]} Rg8 {[%clk 00:03:45]} {[%emt 00:00:27]} 36. Bc3 {[%clk
00:07:55]} {[%emt 00:00:02]} 1/2-1/2

[Event "Snabb-SM för veteraner, 50+ 2019"]
[Site "Schackcentrum, Vegagatan 20, Gothenburg, Sweden"]
[Date "2019.10.06"]
[Round "8.7"]
[White "Andreasson, Ingvar"]
[Black "Frisk, Hans"]
[Result "1-0"]
[TimeControl "15 minutes + 10 seconds per move from move one"]
[WhiteFideId "1700294"]
[BlackFideId "1708570"]
[WhiteElo "2413"]
[BlackElo "1948"]

1. Nf3 {[%clk 00:15:05]} {[%emt 00:00:09]} Nf6 {[%clk 00:15:11]} {[%emt
00:00:14]} 2. c4 {[%clk 00:15:13]} {[%emt 00:00:03]} e6 {[%clk 00:15:15]}
{[%emt 00:00:06]} 3. e3 {[%clk 00:15:21]} {[%emt 00:00:02]} d5 {[%clk
00:15:14]} {[%emt 00:00:10]} 4. b3 {[%clk 00:15:29]} {[%emt 00:00:03]} Be7
{[%clk 00:14:49]} {[%emt 00:00:35]} 5. Bb2 {[%clk 00:15:36]} {[%emt 00:00:03]}
O-O {[%clk 00:14:39]} {[%emt 00:00:20]} 6. Nc3 {[%clk 00:15:36]} {[%emt
00:00:09]} c5 {[%clk 00:14:16]} {[%emt 00:00:33]} 7. cxd5 {[%clk 00:14:56]}
{[%emt 00:00:50]} Nxd5 {[%clk 00:13:15]} {[%emt 00:01:12]} 8. Rc1 {[%clk
00:14:56]} {[%emt 00:00:10]} b6 {[%clk 00:12:56]} {[%emt 00:00:29]} 9. Nxd5
{[%clk 00:14:29]} {[%emt 00:00:36]} Qxd5 {[%clk 00:11:48]} {[%emt 00:01:18]} 10.
Bc4 {[%clk 00:13:41]} {[%emt 00:00:57]} Qd8 {[%clk 00:11:12]} {[%emt 00:00:47]}
11. O-O {[%clk 00:12:49]} {[%emt 00:01:02]} Bb7 {[%clk 00:10:52]} {[%emt
00:00:30]} 12. d4 {[%clk 00:12:29]} {[%emt 00:00:30]} cxd4 {[%clk 00:09:27]}
{[%emt 00:01:36]} 13. Nxd4 {[%clk 00:12:11]} {[%emt 00:00:27]} Bf6 {[%clk
00:07:28]} {[%emt 00:02:09]} 14. Qe2 {[%clk 00:12:09]} {[%emt 00:00:12]} Nd7
{[%clk 00:07:00]} {[%emt 00:00:38]} 15. Ba3 {[%clk 00:07:16]} {[%emt 00:05:03]}
Be7 {[%clk 00:04:44]} {[%emt 00:02:25]} 16. Bb2 {[%clk 00:07:25]} {[%emt
00:00:01]} Bf6 {[%clk 00:04:53]} {[%emt 00:00:01]} 17. Rfd1 {[%clk 00:07:35]}
Qe7 {[%clk 00:04:42]} {[%emt 00:00:21]} 18. Bb5 {[%clk 00:07:43]} {[%emt
00:00:02]} Rac8 {[%clk 00:03:28]} {[%emt 00:01:24]} 19. Nxe6 {[%clk 00:03:30]}
{[%emt 00:04:24]} Rxc1 {[%clk 00:03:05]} {[%emt 00:00:33]} 20. Bxc1 {[%clk
00:03:33]} {[%emt 00:00:05]} Qxe6 {[%clk 00:02:51]} {[%emt 00:00:25]} 21. Bxd7
{[%clk 00:03:31]} {[%emt 00:00:13]} Qe4 {[%clk 00:02:14]} {[%emt 00:00:46]} 22.
f3 {[%clk 00:03:40]} {[%emt 00:00:01]} Qh4 {[%clk 00:02:09]} {[%emt 00:00:15]}
23. Bb5 {[%clk 00:03:39]} {[%emt 00:00:12]} Be5 {[%clk 00:01:36]} {[%emt
00:00:43]} 24. f4 {[%clk 00:03:27]} {[%emt 00:00:21]} Bb8 {[%clk 00:01:40]}
{[%emt 00:00:06]} 25. Qd2 {[%clk 00:02:36]} {[%emt 00:01:01]} Qg4 {[%clk
00:01:21]} {[%emt 00:00:29]} 26. Bf1 {[%clk 00:02:41]} {[%emt 00:00:06]} h5
{[%clk 00:01:17]} {[%emt 00:00:14]} 27. Bb2 {[%clk 00:02:29]} {[%emt 00:00:22]}
h4 {[%clk 00:01:07]} {[%emt 00:00:19]} 28. h3 {[%clk 00:02:31]} {[%emt
00:00:07]} Qg3 {[%clk 00:01:10]} {[%emt 00:00:08]} 29. Qf2 {[%clk 00:02:34]}
{[%emt 00:00:06]} Be4 {[%clk 00:01:02]} {[%emt 00:00:20]} 30. Qxg3 {[%clk
00:02:22]} {[%emt 00:00:22]} hxg3 {[%clk 00:01:10]} {[%emt 00:00:02]} 31. Rd4
{[%clk 00:02:27]} {[%emt 00:00:05]} f5 {[%clk 00:01:04]} {[%emt 00:00:16]} 32.
Rd7 {[%clk 00:02:21]} {[%emt 00:00:16]} Rf7 {[%clk 00:01:05]} {[%emt 00:00:08]}
33. Bc4 {[%emt 00:00:03]} Rf8 {[%emt 00:00:11]} 1-0